bitfinex/quotes_BTCUSD_20220405
["timestamp","ask_amount","ask_price","bid_price","bid_amount"]
[1649188991209,0.2,46007.0,45967.0,0.39281724]
[1649188991210,0.2,45993.0,45967.0,0.39281724]
[1649188991426,0.5442,45968.0,45967.0,0.42562686]
[1649188991520,0.5442,45968.0,45955.0,0.07967742]
[1649188991521,0.251294,45967.0,45955.0,0.07967742]
[1649188991720,0.054402,45964.0,45951.0,0.34974245]
[1649188991815,0.621196,45963.0,45960.0,0.30602464]
[1649188991917,0.5442,45959.0,45957.0,0.26240433]
[1649188992019,1.12421149,45958.0,45957.0,0.26240433]
[1649188992118,1.13509149,45958.0,45957.0,0.26240433]
[1649188992216,0.83509149,45958.0,45956.0,0.31868512]
[1649188992320,0.57291749,45957.0,45956.0,0.31868512]
[1649188992467,0.89411349,45957.0,45956.0,0.31868512]
[1649188992568,0.332076,45957.0,45956.0,0.31868512]
[1649188992667,0.90499349,45957.0,45956.0,0.31868512]
[1649188992767,0.90499349,45957.0,45956.0,0.32969278]
[1649188992876,0.95499349,45957.0,45948.0,0.15301653]
[1649188992973,0.57291749,45956.0,45952.0,0.2821778]
[1649188993078,0.71528542,45957.0,45955.0,0.15301653]
[1649188993178,0.14136793,45957.0,45956.0,0.321196]
[1649188993277,0.14136793,45957.0,45956.0,0.332076]
[1649188993472,0.054403,45959.0,45956.0,0.332076]
[1649188994026,0.5,45958.0,45956.0,0.01088]
[1649188994122,0.5,45958.0,45955.0,0.15330934]
[1649188994323,1.07291749,45958.0,45955.0,0.15330934]
[1649188994522,0.5,45958.0,45955.0,0.15330934]
[1649188994822,0.554398,45958.0,45955.0,0.15330934]
[1649188995024,0.554398,45958.0,45955.0,0.44352324]
[1649188995134,0.554398,45958.0,45955.0,0.15301653]
[1649188995232,0.554398,45958.0,45956.0,0.17357814]
[1649188995736,1.12731549,45958.0,45955.0,0.15301653]
[1649188995839,0.57291749,45957.0,45955.0,0.15301653]
[1649188995946,0.8,45956.0,45955.0,0.15301653]
[1649188996036,1.07291749,45956.0,45948.0,0.0435]
[1649188996136,0.57291749,45955.0,45948.0,0.0435]
[1649188996236,0.57291749,45955.0,45953.0,0.01100742]
[1649188996237,0.57291749,45954.0,45953.0,0.01100742]
[1649188996342,1.19411349,45954.0,45948.0,0.0435]
[1649188996435,1.19411349,45954.0,45946.0,0.01]
[1649188996436,0.89411349,45953.0,45946.0,0.01]
[1649188996585,0.89411349,45952.0,45951.0,0.08374767]
[1649188996735,0.14235332,45953.0,45951.0,0.08374767]
[1649188996837,0.321196,45952.0,45950.0,0.00055911]
[1649188996938,0.321196,45952.0,45951.0,0.08374767]
[1649188997036,0.46354932,45952.0,45951.0,0.08374767]
[1649188997134,0.14235332,45952.0,45950.0,0.00055911]
[1649188997237,0.30559732,45952.0,45951.0,0.23320363]
[1649188997336,0.14235332,45952.0,45951.0,0.54339269]
[1649188997440,0.43983182,45971.0,45951.0,0.55439867]
[1649188997441,0.33221641,45959.0,45951.0,0.55439867]
[1649188997537,0.33221641,45959.0,45952.0,0.321196]
[1649188997638,0.663203,45966.0,45958.0,0.22227375]
[1649188997737,0.663203,45966.0,45959.0,0.321196]
[1649188997838,0.663203,45966.0,45951.0,0.0435]
[1649188997936,0.57291749,45965.0,45952.0,0.321196]
[1649188998135,1.18636983,45965.0,45952.0,0.321196]
[1649188998290,2.94565058,45965.0,45957.0,0.41549071]
[1649188998387,2.37273309,45965.0,45957.0,0.41549071]
[1649188998535,0.5,45963.0,45957.0,0.41549071]
[1649188998635,1.24072293,45962.0,45957.0,0.23802694]
[1649188998735,1.18633293,45961.0,45957.0,0.23802694]
[1649188998979,1.18637102,45960.0,45958.0,0.32175506]
[1649188999082,1.32872434,45960.0,45958.0,0.00055906]
[1649188999230,0.05,45959.0,45958.0,0.00055906]
[1649188999328,0.19235332,45959.0,45958.0,0.00055906]
[1649188999580,0.69235332,45959.0,45958.0,0.00055906]
[1649189000029,0.69235332,45959.0,45957.0,0.16824044]
[1649189000128,0.86517112,45958.0,45957.0,0.16824044]
[1649189000328,0.86517112,45958.0,45957.0,0.321267]
[1649189000430,0.86517112,45958.0,45956.0,0.00054121]
[1649189000530,0.5,45957.0,45956.0,0.00054121]
[1649189000931,0.64235332,45957.0,45956.0,0.00054121]
[1649189001234,0.64235332,45957.0,45955.0,0.0435]
[1649189001235,0.69676232,45957.0,45955.0,0.0435]
[1649189002032,0.06276577,45954.0,45950.0,0.27843273]
[1649189002186,0.06276577,45954.0,45953.0,0.01100706]
[1649189002384,0.6,45953.0,45947.0,0.0435]
[1649189002531,0.6,45953.0,45948.0,0.321267]
[1649189002532,1.18646755,45953.0,45948.0,0.321267]
[1649189002680,1.84087255,45953.0,45947.0,0.0435]
[1649189002780,1.24087255,45953.0,45947.0,0.0435]
[1649189002884,0.14235332,45952.0,45947.0,0.0435]
[1649189002980,0.14235332,45952.0,45947.0,0.21856336]
[1649189003084,1.24087255,45953.0,45947.0,0.21856336]
[1649189003182,1.24087255,45953.0,45947.0,0.22179164]
[1649189003280,2.04087255,45953.0,45944.0,0.4919604]
[1649189003387,1.24087255,45953.0,45945.0,0.01088]
[1649189003482,1.18646755,45953.0,45945.0,0.05438]
[1649189003582,1.18646755,45953.0,45944.0,0.4919604]
[1649189003985,1.18646755,45953.0,45945.0,0.0435]
[1649189004085,1.18646755,45953.0,45947.0,0.18788589]
[1649189004338,1.18646755,45953.0,45948.0,0.0435]
[1649189004435,2.29059222,45953.0,45948.0,0.0435]
[1649189004638,2.69059222,45953.0,45945.0,0.01088]
[1649189004736,2.69059222,45953.0,45946.0,0.0435]
[1649189004737,0.0011172,45952.0,45946.0,0.0435]
[1649189004836,0.83469878,45952.0,45946.0,0.0435]
[1649189004937,0.79697878,45951.0,45946.0,0.0435]
[1649189005087,0.79697878,45951.0,45950.0,0.07274061]
[1649189005290,0.79697878,45951.0,45948.0,0.00052357]
[1649189005490,0.79697878,45951.0,45950.0,0.01100658]
[1649189005589,0.06276577,45954.0,45950.0,0.02188658]
[1649189005692,0.06276577,45954.0,45951.0,0.21088]
[1649189005787,0.06276577,45954.0,45953.0,0.01100646]
[1649189005891,0.06224845,45954.0,45953.0,0.01100646]
[1649189006088,0.56224845,45954.0,45953.0,0.01100646]
[1649189006422,0.56224845,45954.0,45953.0,0.24966178]
[1649189006671,0.06224845,45954.0,45953.0,0.24966178]
[1649189007177,0.06224845,45954.0,45953.0,0.01100646]
[1649189008277,0.06224845,45954.0,45953.0,0.32685378]
[1649189010028,0.06224845,45954.0,45953.0,0.01100646]
[1649189011176,0.06224845,45954.0,45953.0,0.29443119]
[1649189013030,0.06224845,45954.0,45953.0,0.01100646]
[1649189015438,0.06224845,45954.0,45946.0,0.00988]
[1649189015439,1.6,45952.0,45946.0,0.00988]
[1649189015543,0.92291749,45947.0,45917.0,0.16785554]
[1649189015643,2.11088,45951.0,45883.0,0.2]
[1649189015644,0.92291749,45918.0,45883.0,0.2]
[1649189015744,0.57291749,45900.0,45881.0,2.78861611]
[1649189015840,0.57291749,45906.0,45900.0,0.20630218]
[1649189015939,0.01089,45899.0,45881.0,2.50621106]
[1649189016044,0.00206134,45900.0,45881.0,2.50621106]
[1649189016045,0.57291749,45897.0,45881.0,2.50621106]
[1649189016140,0.05,45894.0,45883.0,0.2]
[1649189016243,0.57291749,45891.0,45881.0,2.50621106]
[1649189016344,0.05,45894.0,45883.0,0.2]
[1649189016439,0.00206134,45893.0,45890.0,0.29424531]
[1649189016542,0.05,45894.0,45883.0,0.2]
[1649189016644,0.0435,45890.0,45884.0,0.0109]
[1649189016740,0.57291749,45885.0,45881.0,1.98269245]
[1649189016840,0.57191749,45885.0,45883.0,0.28873856]
[1649189016943,0.27746947,45893.0,45884.0,0.06173415]
[1649189017041,0.32746947,45894.0,45889.0,0.00021778]
[1649189017139,0.05,45894.0,45889.0,0.00021778]
[1649189017241,0.05,45894.0,45884.0,0.0109]
[1649189017242,0.05,45894.0,45893.0,0.01102012]
[1649189017339,0.05,45898.0,45886.0,0.00029044]
[1649189017444,0.27746947,45897.0,45888.0,0.2]
[1649189017683,0.0427,45898.0,45894.0,1.04041384]
[1649189017785,0.104451,45906.0,45895.0,0.3]
[1649189017885,0.05,45900.0,45895.0,0.3]
[1649189018130,0.0478,45900.0,45894.0,1.04041384]
[1649189018334,0.0478,45900.0,45894.0,1.09041384]
[1649189018433,0.0468,45900.0,45899.0,0.0110182]
[1649189018532,0.354441,45921.0,45899.0,0.00021775]
[1649189018638,0.05,45916.0,45911.0,0.16324293]
[1649189018832,0.05,45916.0,45914.0,0.24270911]
[1649189018934,0.5,45915.0,45914.0,0.24270911]
[1649189019034,0.05,45916.0,45914.0,0.24270911]
[1649189019134,0.05,45916.0,45915.0,0.01101341]
[1649189019534,0.05,45916.0,45915.0,0.00021767]
[1649189020434,0.05,45916.0,45915.0,0.21347231]
[1649189021284,0.05,45916.0,45915.0,0.01101389]
[1649189022079,0.04875163,45916.0,45915.0,0.01101389]
[1649189023582,0.04875163,45916.0,45915.0,0.01101293]
[1649189023882,0.04875163,45916.0,45915.0,0.01101257]
[1649189024732,0.04875163,45916.0,45915.0,0.05451257]
[1649189026677,0.04875163,45916.0,45915.0,0.05451221]
[1649189026776,0.04875163,45916.0,45915.0,0.0435]
[1649189026878,0.04875163,45916.0,45915.0,0.06540005]
[1649189028575,0.04875163,45916.0,45915.0,0.60960005]
[1649189028777,0.04875163,45916.0,45915.0,1.37290005]
[1649189030139,0.04375163,45916.0,45915.0,1.37290005]
[1649189031343,1.63e-06,45916.0,45915.0,1.37290005]
[1649189031449,0.00053622,45929.0,45919.0,0.054414]
[1649189031592,0.00053622,45929.0,45924.0,0.06151648]
[1649189031690,0.00053622,45929.0,45919.0,0.126384]
[1649189031691,0.00053622,45929.0,45928.0,0.06151648]
[1649189032189,0.01,45934.0,45928.0,0.06151648]
[1649189032290,0.01,45934.0,45933.0,0.06151648]
[1649189033235,0.01,45934.0,45933.0,0.2583927]
[1649189033438,0.01,45934.0,45933.0,0.20788472]
[1649189038329,0.01,45934.0,45933.0,0.0545085]
[1649189040139,0.01,45934.0,45933.0,0.65967638]
[1649189040232,0.01,45934.0,45933.0,0.81919545]
[1649189040333,0.01,45934.0,45933.0,0.98008545]
[1649189040431,0.4763,45952.0,45934.0,1.6]
[1649189040432,0.01088,45951.0,45934.0,1.6]
[1649189040531,0.2,45952.0,45939.0,0.06151648]
[1649189040632,0.2,45952.0,45940.0,0.3]
[1649189040733,0.2,45951.0,45945.0,0.01100766]
[1649189040832,0.01088,45956.0,45948.0,0.01100766]
[1649189040931,0.02201532,45947.0,45941.0,0.09179]
[1649189041083,0.02201532,45947.0,45942.0,0.0435]
[1649189041182,0.22201532,45947.0,45946.0,0.04823025]
[1649189041281,0.55417732,45947.0,45946.0,0.04823025]
[1649189041481,0.23289532,45947.0,45946.0,0.04823025]
[1649189041784,0.21701532,45947.0,45946.0,0.04823025]
[1649189041884,0.21701532,45947.0,45942.0,0.0435]
[1649189042033,0.21701532,45947.0,45946.0,0.01137736]
[1649189042135,0.01701532,45947.0,45946.0,0.01137736]
[1649189042836,0.01701532,45947.0,45946.0,0.1761125]
[1649189044478,0.01701532,45947.0,45946.0,0.17574316]
[1649189045831,0.01701532,45947.0,45946.0,0.47574316]
[1649189046130,0.01701532,45947.0,45946.0,0.17574316]
[1649189046333,0.01701532,45947.0,45946.0,0.85976415]
[1649189046430,0.01701532,45947.0,45946.0,0.47574316]
[1649189047876,0.01701532,45947.0,45946.0,0.58452616]
[1649189049530,0.01701532,45947.0,45946.0,0.28452616]
[1649189049731,0.01701532,45947.0,45946.0,0.58452616]
[1649189050284,0.01701532,45947.0,45946.0,0.28452616]
[1649189051132,0.01701532,45947.0,45946.0,0.58452616]
[1649189051233,0.01701532,45947.0,45946.0,0.10992072]
[1649189051408,0.01701532,45947.0,45946.0,0.2809463]
[1649189051909,0.01701532,45947.0,45946.0,0.3897293]
[1649189052108,0.01701532,45947.0,45946.0,0.38972903]
[1649189052209,0.01701532,45947.0,45946.0,0.45060512]
[1649189052313,0.01701532,45947.0,45946.0,0.55060512]
[1649189052461,0.01051955,45949.0,45947.0,1.6]
[1649189052562,0.01051955,45949.0,45948.0,0.31088]
[1649189052666,0.01,45949.0,45948.0,0.35098]
[1649189052761,0.01,45949.0,45948.0,0.51198419]
[1649189052860,0.01,45949.0,45948.0,0.51198395]
[1649189052961,0.01088,45968.0,45949.0,1.6]
[1649189053062,0.6633,45985.0,45953.0,0.054373]
[1649189053063,0.5,45962.0,45953.0,0.054373]
[1649189053161,0.5,45962.0,45960.0,0.25180485]
[1649189053261,0.5,45962.0,45961.0,0.01100299]
[1649189053462,0.2,45968.0,45961.0,0.01100299]
[1649189053562,0.2,45968.0,45955.0,0.46017403]
[1649189053667,0.2,45968.0,45962.0,0.28474624]
[1649189053762,0.2,45968.0,45963.0,0.0395008]
[1649189054065,0.2,45968.0,45963.0,0.01100299]
[1649189054464,0.25,45968.0,45963.0,0.22197315]
[1649189054764,0.25,45968.0,45963.0,0.30867315]
[1649189054864,0.25,45968.0,45963.0,0.60867315]
[1649189055342,0.00052196,45966.0,45963.0,0.60867315]
[1649189055743,0.00052196,45966.0,45963.0,1.0143298]
[1649189056247,0.01088,45977.0,45963.0,1.00332681]
[1649189056345,0.57668348,45978.0,45964.0,1.6]
[1649189056449,0.52230648,45978.0,45966.0,0.054372]
[1649189056547,0.52230648,45978.0,45971.0,0.01100096]
[1649189056654,0.52230648,45978.0,45970.0,0.30165612]
[1649189056747,0.52230648,45978.0,45971.0,0.3]
[1649189056849,0.42240648,45978.0,45976.0,0.02332355]
[1649189056996,0.42240648,45978.0,45977.0,0.02332355]
[1649189058048,0.22240648,45978.0,45977.0,0.02332355]
[1649189058877,0.22240648,45978.0,45977.0,0.32332355]
[1649189059686,0.00052201,45980.0,45978.0,1.0]
[1649189059782,0.00052201,45980.0,45979.0,0.3]
[1649189059882,0.2,45992.0,45980.0,1.6]
[1649189059988,0.25895713,45990.0,45983.0,0.054355]
[1649189060084,0.145641,45993.0,45983.0,0.054355]
[1649189060085,0.145641,45993.0,45989.0,0.2]
[1649189060188,0.145641,45993.0,45990.0,0.01087]
[1649189060284,0.01,45994.0,45990.0,0.01087]
[1649189060383,0.01515998,45999.0,45991.0,0.24839767]
[1649189060487,0.01515998,45999.0,45991.0,0.0401]
[1649189060584,0.01515998,45999.0,45991.0,0.30574941]
[1649189060837,0.0999,46002.0,45991.0,0.30574941]
[1649189060937,0.01087,46001.0,45991.0,0.30574941]
[1649189061030,0.054363,45999.0,45991.0,0.30574941]
[1649189061132,0.01087,45998.0,45991.0,0.30574941]
[1649189061535,0.0002365,45997.0,45994.0,0.15812001]
[1649189061637,0.0545935,45997.0,45994.0,0.15812001]
[1649189061837,0.0002365,45997.0,45994.0,0.15812001]
[1649189062036,0.0002365,45997.0,45995.0,0.0401]
[1649189062292,0.0002365,45997.0,45995.0,0.3401]
[1649189062387,0.01087,46008.0,45996.0,0.3]
[1649189062491,0.01087,46008.0,45996.0,1.02253053]
[1649189062648,0.00052069,45998.0,45997.0,0.0401]
[1649189062751,0.00208245,46005.0,45998.0,1.654323]
[1649189062849,0.00208245,46005.0,45998.0,1.96594367]
[1649189062952,0.00208245,46005.0,46002.0,0.03864]
[1649189063049,0.00208245,46005.0,46004.0,0.53452368]
[1649189063147,0.00208245,46005.0,46004.0,0.87402448]
[1649189063349,0.00208245,46005.0,46004.0,0.57402448]
[1649189063448,0.00208245,46005.0,46004.0,0.4960315]
[1649189063648,0.01,46009.0,46004.0,0.4960315]
[1649189063797,0.01,46009.0,46008.0,0.0395008]
[1649189063998,0.01,46009.0,46008.0,0.0796008]
[1649189064199,0.01,46009.0,46008.0,0.29667227]
[1649189064404,0.01,46009.0,46008.0,0.690024]
[1649189064601,0.01,46009.0,46008.0,0.990024]
[1649189064806,0.1226,46012.0,46008.0,1.044344]
[1649189064904,0.1226,46012.0,46009.0,1.4]
[1649189065052,0.1226,46012.0,46011.0,0.0395008]
[1649189065151,0.1226,46012.0,46011.0,0.3395008]
[1649189065253,0.1226,46012.0,46011.0,0.5796008]
[1649189065555,0.1226,46012.0,46011.0,1.30213133]
[1649189065755,0.1226,46012.0,46011.0,0.6904708]
[1649189065955,0.1226,46012.0,46011.0,0.3904708]
[1649189066054,0.1226,46012.0,46011.0,1.41300133]
[1649189066509,0.00224145,46021.0,46012.0,1.6]
[1649189066661,0.00224145,46021.0,46019.0,0.33231402]
[1649189066760,0.00224145,46021.0,46019.0,1.39434535]
[1649189066861,0.00224145,46021.0,46019.0,0.71191482]
[1649189066960,0.00224145,46021.0,46019.0,1.44531535]
[1649189067061,0.00224145,46021.0,46019.0,1.64531535]
[1649189067159,0.00224145,46021.0,46019.0,1.45237202]
[1649189067263,0.01,46024.0,46019.0,1.45237202]
[1649189067362,0.01,46024.0,46019.0,1.31300133]
[1649189067465,0.01,46024.0,46020.0,1.6]
[1649189067563,0.01,46024.0,46021.0,1.37432685]
[1649189067661,1.50333075,46040.0,46024.0,1.654287]
[1649189067762,1.50333075,46040.0,46027.0,0.72253053]
[1649189067863,1.50333075,46040.0,46028.0,0.97967355]
[1649189067964,1.50333075,46040.0,46029.0,0.84109783]
[1649189068065,1.50333075,46040.0,46030.0,0.67967355]
[1649189068161,1.50333075,46040.0,46031.0,0.3]
[1649189068264,1.50333075,46040.0,46032.0,0.64058273]
[1649189068361,1.50333075,46040.0,46031.0,0.3]
[1649189068362,1.50333075,46040.0,46033.0,0.64058273]
[1649189068464,1.50333075,46040.0,46033.0,0.60193612]
[1649189068564,1.50333075,46040.0,46034.0,0.0401]
[1649189068662,1.50333075,46040.0,46038.0,0.25965099]
[1649189068761,1.50333075,46040.0,46038.0,1.17636131]
[1649189068863,0.0071,46041.0,46038.0,1.23884658]
[1649189068966,0.0071,46041.0,46040.0,0.00110527]
[1649189069066,0.0071,46041.0,46040.0,0.56394618]
[1649189069162,0.0071,46041.0,46040.0,0.09637809]
[1649189069462,0.0071,46041.0,46040.0,0.0401]
[1649189069562,0.0071,46041.0,46040.0,0.01130802]
[1649189069762,0.0071,46041.0,46034.0,0.77897205]
[1649189069869,0.0071,46041.0,46035.0,0.0401]
[1649189069965,0.0071,46041.0,46036.0,0.3]
[1649189070150,0.0071,46041.0,46040.0,0.00021712]
[1649189070292,0.0071,46041.0,46040.0,0.04031712]
[1649189070388,0.0071,46041.0,46040.0,0.01805315]
[1649189070588,0.0071,46041.0,46034.0,0.47558705]
[1649189070692,0.0071,46041.0,46035.0,0.2401]
[1649189070842,0.0071,46041.0,46040.0,0.05519248]
[1649189070938,0.0071,46041.0,46038.0,0.3]
[1649189071045,0.0071,46041.0,46040.0,0.53410102]
[1649189071146,0.0071,46041.0,46040.0,0.54496102]
[1649189071291,0.0071,46041.0,46040.0,0.62392846]
[1649189071496,0.0071,46041.0,46040.0,0.32443061]
[1649189071592,0.0071,46041.0,46040.0,0.04496102]
[1649189071695,0.0071,46041.0,46040.0,0.03410102]
[1649189071794,0.0071,46041.0,46040.0,0.01405345]
[1649189071893,0.0071,46041.0,46039.0,0.02875]
[1649189071995,0.0071,46041.0,46040.0,0.05427501]
[1649189072098,0.0071,46041.0,46040.0,0.03440127]
[1649189072452,0.0071,46041.0,46040.0,0.01506831]
[1649189072696,0.0071,46041.0,46038.0,0.29600941]
[1649189072897,0.0071,46041.0,46040.0,0.01239445]
[1649189073098,0.0071,46041.0,46040.0,0.05249445]
[1649189073198,0.0071,46041.0,46040.0,0.35249445]
[1649189073298,0.0071,46041.0,46040.0,0.33373414]
[1649189073550,0.0071,46041.0,46040.0,0.52406373]
[1649189073649,0.0071,46041.0,46040.0,0.49032959]
[1649189073890,0.0071,46041.0,46040.0,0.57343343]
[1649189074240,0.0071,46041.0,46040.0,0.89665875]
[1649189074494,0.0071,46041.0,46040.0,0.99774974]
[1649189074592,0.0011,46041.0,46040.0,1.46784974]
[1649189074694,0.0011,46051.0,46041.0,1.6]
[1649189074797,0.00225329,46050.0,46042.0,2.43693]
[1649189074893,0.00225329,46050.0,46049.0,0.17946959]
[1649189075050,0.00225329,46050.0,46049.0,0.53863959]
[1649189075144,0.002,46059.0,46050.0,1.15]
[1649189075246,0.002,46059.0,46051.0,0.29100605]
[1649189075343,0.002,46059.0,46051.0,0.94074205]
[1649189075447,0.002,46059.0,46051.0,0.93574205]
[1649189075544,0.002,46059.0,46052.0,0.17946959]
[1649189075646,0.002,46059.0,46052.0,0.23372059]
[1649189075749,0.002,46059.0,46053.0,0.20181034]
[1649189075849,0.002,46059.0,46054.0,0.20109099]
[1649189075949,0.0015,46063.0,46054.0,0.19549336]
[1649189076055,0.0015,46063.0,46055.0,0.17946959]
[1649189076149,0.0015,46063.0,46060.0,0.09549336]
[1649189076254,0.0015,46063.0,46062.0,0.09547368]
[1649189076650,0.0015,46063.0,46062.0,0.39547368]
[1649189076751,0.0015,46063.0,46062.0,0.09547368]
[1649189077099,0.0015,46063.0,46062.0,0.39547368]
[1649189077200,0.0011,46066.0,46062.0,0.39547368]
[1649189077301,0.0011,46066.0,46062.0,0.3]
[1649189077404,0.0011,46066.0,46065.0,0.10109099]
[1649189077637,0.0011,46066.0,46065.0,0.14119099]
[1649189077836,0.0011,46066.0,46065.0,0.04031699]
[1649189081289,0.0011,46066.0,46057.0,1.28550686]
[1649189081409,0.0011,46066.0,46062.0,0.09547368]
[1649189081506,0.0011,46066.0,46062.0,0.29810961]
[1649189081604,0.0011,46066.0,46065.0,0.09547368]
[1649189081908,0.0011,46066.0,46065.0,0.13557368]
[1649189082005,0.00166347,46066.0,46065.0,0.13557368]
[1649189082205,0.00166347,46066.0,46065.0,0.18981868]
[1649189082306,0.00166347,46066.0,46065.0,0.43541373]
[1649189082709,0.00166347,46066.0,46065.0,0.58631864]
[1649189082908,0.0011,46066.0,46065.0,0.58631864]
[1649189083208,0.0011,46068.0,46065.0,0.58631864]
[1649189083209,0.00164257,46068.0,46065.0,0.58631864]
[1649189083309,0.00164257,46068.0,46067.0,0.100874]
[1649189083411,0.00164257,46068.0,46067.0,0.40531199]
[1649189083614,0.0011,46071.0,46068.0,1.45]
[1649189083712,0.00216997,46075.0,46070.0,0.100874]
[1649189083812,0.00216997,46075.0,46071.0,0.054228]
[1649189083911,0.00216997,46075.0,46071.0,0.094328]
[1649189084012,0.00216997,46075.0,46072.0,0.43143806]
[1649189084111,0.01085,46083.0,46072.0,0.47153806]
[1649189084211,0.0999,46085.0,46072.0,0.48238806]
[1649189084312,0.0999,46085.0,46075.0,0.09542916]
[1649189084414,0.0999,46085.0,46075.0,0.39542916]
[1649189084513,0.005064,46084.0,46075.0,0.39542916]
[1649189084614,0.005064,46084.0,46075.0,0.3]
[1649189084713,0.005064,46084.0,46080.0,0.09542916]
[1649189084813,0.005064,46084.0,46082.0,0.29805836]
[1649189084914,0.005064,46084.0,46083.0,0.09542088]
[1649189085139,0.19084176,46082.0,46078.0,0.0401]
[1649189085288,0.19084176,46082.0,46081.0,0.00045542]
[1649189085385,0.19084176,46082.0,46081.0,0.26018056]
[1649189085486,0.19084176,46082.0,46081.0,0.73965015]
[1649189085587,0.19084176,46082.0,46081.0,0.80050015]
[1649189085685,0.19084176,46082.0,46081.0,0.72103056]
[1649189085785,0.19084176,46082.0,46081.0,0.94060015]
[1649189085887,0.19084176,46082.0,46081.0,0.46113056]
[1649189085984,0.19084176,46082.0,46081.0,0.68815677]
[1649189086788,0.19084176,46082.0,46081.0,0.05140542]
[1649189086889,0.19084176,46082.0,46081.0,0.04055542]
[1649189089014,0.19084176,46082.0,46076.0,0.3]
[1649189089115,0.19084176,46082.0,46081.0,0.0049977]
[1649189090419,0.45830123,46082.0,46081.0,0.0049977]
[1649189090520,0.88968164,46082.0,46070.0,0.0401]
[1649189090620,0.02053041,46077.0,46072.0,0.1]
[1649189090718,0.332132,46076.0,46072.0,0.1]
[1649189090819,0.321282,46074.0,46072.0,0.1]
[1649189090917,0.01085,46073.0,46061.0,0.2485]
[1649189091017,0.15,46074.0,46058.0,1.032]
[1649189091121,0.01085,46073.0,46058.0,0.2812]
[1649189091422,0.71417928,46073.0,46062.0,0.23634147]
[1649189091521,0.119399,46073.0,46066.0,0.27796379]
[1649189091620,0.00054483,46070.0,46066.0,0.27796379]
[1649189091823,0.00054483,46070.0,46069.0,0.0049977]
[1649189092520,0.01085,46081.0,46069.0,0.0049977]
[1649189092633,0.01085,46081.0,46074.0,0.19702494]
[1649189092732,0.01085,46081.0,46069.0,0.28355154]
[1649189092733,0.00054483,46072.0,46069.0,0.28355154]
[1649189092837,0.00054483,46072.0,46071.0,0.0049977]
[1649189092935,0.00054483,46072.0,46071.0,0.28702913]
[1649189093736,0.19084176,46082.0,46071.0,0.28702913]
[1649189093836,0.19084176,46082.0,46071.0,0.28203143]
[1649189094134,0.00054482,46074.0,46071.0,0.28203143]
[1649189094234,0.00054482,46074.0,46073.0,0.0049977]
[1649189094840,0.00054482,46074.0,46073.0,0.18446729]
[1649189094943,0.19084176,46082.0,46073.0,0.48446729]
[1649189095037,0.19084176,46082.0,46073.0,0.47946959]
[1649189095237,0.19084176,46082.0,46077.0,0.17946959]
[1649189095588,0.19084176,46082.0,46081.0,0.30693407]
[1649189095739,0.19084176,46082.0,46078.0,0.15217622]
[1649189095838,0.005064,46084.0,46078.0,0.38797285]
[1649189096189,0.005064,46084.0,46078.0,0.23579663]
[1649189096434,0.005064,46084.0,46077.0,0.1]
[1649189097425,0.23969002,46080.0,46077.0,0.1]
[1649189097522,0.23969002,46080.0,46079.0,0.0049977]
[1649189097825,0.23969002,46080.0,46071.0,0.01085]
[1649189097930,0.3,46079.0,46071.0,0.1]
[1649189098123,0.01085,46078.0,46071.0,0.1]
[1649189098423,0.31085,46079.0,46071.0,0.1]
[1649189098725,0.05426423,46078.0,46072.0,0.00033268]
[1649189098824,0.01085,46077.0,46072.0,0.00033268]
[1649189098925,0.01085,46078.0,46076.0,0.0049977]
[1649189099024,0.01085,46078.0,46077.0,0.0049977]
[1649189099226,0.00999539,46076.0,46072.0,0.00033268]
[1649189099327,0.01085,46075.0,46072.0,0.00033268]
[1649189099426,0.00999539,46076.0,46074.0,0.17]
[1649189099529,0.00999539,46076.0,46075.0,0.17]
[1649189100030,0.00999539,46076.0,46075.0,0.65005985]
[1649189100644,0.00999539,46076.0,46075.0,0.17]
[1649189101593,0.00999539,46076.0,46075.0,0.39715113]
[1649189101992,0.00999539,46076.0,46075.0,0.17]
[1649189103898,0.00999539,46076.0,46075.0,0.224244]
[1649189104901,0.00999539,46076.0,46075.0,0.40391432]
[1649189105203,0.16131716,46076.0,46075.0,0.40391432]
[1649189106710,0.005064,46084.0,46076.0,1.55]
[1649189106809,0.005064,46084.0,46081.0,0.37415459]
[1649189106908,0.005064,46084.0,46082.0,0.354227]
[1649189107007,0.005064,46084.0,46083.0,0.17]
[1649189107108,4e-06,46084.0,46083.0,0.47]
[1649189107221,0.002,46101.0,46084.0,1.6]
[1649189107311,0.002,46101.0,46096.0,0.17946959]
[1649189107410,0.002,46101.0,46098.0,0.17]
[1649189107514,0.002,46101.0,46098.0,0.47]
[1649189107660,0.002,46101.0,46098.0,0.17]
[1649189108356,0.335,46099.0,46098.0,0.17]
[1649189108555,0.035,46099.0,46098.0,0.09539606]
[1649189109055,0.19079212,46094.0,46090.0,0.28013985]
[1649189109256,0.19079212,46094.0,46093.0,0.0009106]
[1649189109357,0.19079212,46094.0,46093.0,0.00021681]
[1649189109557,0.24079212,46094.0,46093.0,0.00021681]
[1649189109707,0.19131974,46094.0,46093.0,0.00021681]
[1649189110612,0.19079212,46094.0,46093.0,0.00021681]
[1649189111425,0.19079212,46094.0,46084.0,0.04335]
[1649189111426,0.00122787,46093.0,46084.0,0.04335]
[1649189111515,0.24503512,46094.0,46089.0,0.00021682]
[1649189111613,0.24503512,46094.0,46084.0,0.04335]
[1649189111813,0.24503512,46094.0,46089.0,0.00021682]
[1649189111914,0.24503512,46094.0,46093.0,0.07438713]
[1649189112262,0.24556235,46094.0,46093.0,0.07438713]
[1649189113012,0.19079212,46094.0,46093.0,0.07438713]
[1649189113613,0.19079212,46094.0,46093.0,0.35961628]
[1649189113816,0.19079212,46094.0,46093.0,0.44508287]
[1649189113919,0.19079212,46094.0,46093.0,0.54508287]
[1649189114414,0.19079212,46094.0,46093.0,0.80900608]
[1649189115393,0.19079212,46094.0,46093.0,0.90900608]
[1649189115494,0.035,46099.0,46093.0,0.90900608]
[1649189115593,0.035,46099.0,46098.0,0.07438713]
[1649189115694,0.035,46099.0,46098.0,0.15985372]
[1649189116094,0.035,46099.0,46098.0,0.26826272]
[1649189116796,0.035,46099.0,46098.0,0.36826272]
[1649189117398,0.035,46099.0,46098.0,0.67530391]
[1649189117498,0.035,46099.0,46098.0,0.36826272]